[Event "*** Titled Tuesday Blitz"]
[Site "Chess.com"]
[Date "2021.04.06"]
[Round "11"]
[White "m_ezat"]
[Black "esapunov"]
[Result "0-1"]
[WhiteElo "2564"]
[BlackElo "2712"]
[TimeControl "180+1"]
[EndTime "12:04:49 PDT"]
[Termination "esapunov won by resignation"]

1. d4 {[%clk 0:03:00.9]} 1... Nf6 {[%clk 0:02:59.6]} 2. c4 {[%clk 0:03:01.2]}
2... g6 {[%clk 0:02:59.6]} 3. Nc3 {[%clk 0:03:01.8]} 3... Bg7 {[%clk 0:03:00.1]}
4. e4 {[%clk 0:03:02.3]} 4... O-O {[%clk 0:03:00.7]} 5. Be2 {[%clk 0:03:02.9]}
5... d6 {[%clk 0:03:01]} 6. Bg5 {[%clk 0:03:03.4]} 6... Na6 {[%clk 0:03:01.2]}
7. Qd2 {[%clk 0:03:02.9]} 7... e5 {[%clk 0:03:00.6]} 8. d5 {[%clk 0:03:03]} 8...
c6 {[%clk 0:03:01.1]} 9. f3 {[%clk 0:03:02.7]} 9... cxd5 {[%clk 0:03:00.8]} 10.
cxd5 {[%clk 0:03:03.3]} 10... Bd7 {[%clk 0:03:01.5]} 11. g4 {[%clk 0:03:03]}
11... Qa5 {[%clk 0:02:58.4]} 12. h4 {[%clk 0:03:02.6]} 12... h5 {[%clk
0:02:58.6]} 13. Bxf6 {[%clk 0:03:02.2]} 13... Bxf6 {[%clk 0:02:58.6]} 14. gxh5
{[%clk 0:03:02.7]} 14... Kg7 {[%clk 0:02:58.9]} 15. h6+ {[%clk 0:03:00.1]} 15...
Kh7 {[%clk 0:02:58.8]} 16. Nh3 {[%clk 0:02:58.8]} 16... Bxh3 {[%clk 0:02:54.4]}
17. Rxh3 {[%clk 0:02:58]} 17... Nc5 {[%clk 0:02:54.6]} 18. Rb1 {[%clk
0:02:56.3]} 18... Qd8 {[%clk 0:02:53.8]} 19. b4 {[%clk 0:02:55]} 19... Bxh4+
{[%clk 0:02:50.5]} 20. Kf1 {[%clk 0:02:53.3]} 20... Bg5 {[%clk 0:02:50.2]} 21.
Qd1 {[%clk 0:02:52.1]} 21... Nd7 {[%clk 0:02:50.1]} 22. Kg2 {[%clk 0:02:49.9]}
22... Nf6 {[%clk 0:02:48]} 23. Bd3 {[%clk 0:02:44.2]} 23... Nh5 {[%clk
0:02:41.2]} 24. Ne2 {[%clk 0:02:39.6]} 24... Nf4+ {[%clk 0:02:35.4]} 25. Nxf4
{[%clk 0:02:35.3]} 25... Bxf4 {[%clk 0:02:36.3]} 26. Kh1 {[%clk 0:02:28.1]}
26... Rc8 {[%clk 0:02:35.4]} 27. Qe2 {[%clk 0:02:23]} 27... Rc3 {[%clk
0:02:26.6]} 28. Rg1 {[%clk 0:02:14.3]} 28... Qb6 {[%clk 0:02:18.7]} 29. Rh4
{[%clk 0:02:07.6]} 29... Be3 {[%clk 0:02:04.9]} 30. Rg2 {[%clk 0:02:01.5]} 30...
Rfc8 {[%clk 0:01:59.9]} 31. Kh2 {[%clk 0:01:58.4]} 31... Qd4 {[%clk 0:01:58]}
32. Bb1 {[%clk 0:01:54.9]} 32... Rc1 {[%clk 0:01:55.6]} 33. Bd3 {[%clk
0:01:53.6]} 33... R8c3 {[%clk 0:01:54.5]} 34. Bb5 {[%clk 0:01:51.6]} 34... Bg1+
{[%clk 0:01:27]} 35. Kh3 {[%clk 0:01:50.8]} 35... Re3 {[%clk 0:01:27.2]} 36. Qb2
{[%clk 0:01:36.7]} 36... Rxf3+ {[%clk 0:01:22.2]} 0-1

[Event "*** Titled Tuesday Blitz"]
[Site "Chess.com"]
[Date "2021.04.06"]
[Round "11"]
[White "BeyondMadness"]
[Black "WiktoriaPOL"]
[Result "1-0"]
[WhiteElo "2261"]
[BlackElo "2052"]
[TimeControl "180+1"]
[EndTime "12:05:11 PDT"]
[Termination "BeyondMadness won by resignation"]

1. d4 {[%clk 0:03:00.6]} 1... d5 {[%clk 0:02:58.1]} 2. c4 {[%clk 0:03:00.2]}
2... e5 {[%clk 0:02:57.3]} 3. dxe5 {[%clk 0:02:59.8]} 3... d4 {[%clk 0:02:56.6]}
4. Nf3 {[%clk 0:02:58.5]} 4... Nc6 {[%clk 0:02:55.9]} 5. Nbd2 {[%clk 0:02:58.3]}
5... Nge7 {[%clk 0:02:55.3]} 6. Nb3 {[%clk 0:02:56.8]} 6... Ng6 {[%clk
0:02:54.9]} 7. Nbxd4 {[%clk 0:02:48]} 7... Nxd4 {[%clk 0:02:52.8]} 8. Qxd4
{[%clk 0:02:43.6]} 8... Qxd4 {[%clk 0:02:51.3]} 9. Nxd4 {[%clk 0:02:42.9]} 9...
Nxe5 {[%clk 0:02:50.9]} 10. e3 {[%clk 0:02:40.5]} 10... Bb4+ {[%clk 0:02:48.9]}
11. Bd2 {[%clk 0:02:39.9]} 11... Bxd2+ {[%clk 0:02:48.5]} 12. Kxd2 {[%clk
0:02:39.7]} 12... c5 {[%clk 0:02:48.7]} 13. Nb5 {[%clk 0:02:36.1]} 13... O-O
{[%clk 0:02:48.1]} 14. Be2 {[%clk 0:02:30]} 14... Be6 {[%clk 0:02:44.8]} 15. Kc3
{[%clk 0:02:23]} 15... Rfd8 {[%clk 0:02:32.1]} 16. Rhd1 {[%clk 0:02:20.1]} 16...
Rac8 {[%clk 0:02:27.9]} 17. Nxa7 {[%clk 0:02:13.4]} 17... Rxd1 {[%clk
0:02:25.5]} 18. Rxd1 {[%clk 0:02:12.5]} 18... Ra8 {[%clk 0:02:24.5]} 19. Nb5
{[%clk 0:02:08.8]} 19... Bf5 {[%clk 0:02:17]} 20. a3 {[%clk 0:02:00.8]} 20... h6
{[%clk 0:02:13.1]} 21. Rd5 {[%clk 0:01:53.9]} 21... f6 {[%clk 0:02:08]} 22. f4
{[%clk 0:01:43]} 22... Be4 {[%clk 0:02:03.3]} 23. Rxc5 {[%clk 0:01:28.7]} 23...
Nc6 {[%clk 0:01:58.1]} 24. Bf3 {[%clk 0:01:23.7]} 24... Bxf3 {[%clk 0:01:53]}
25. gxf3 {[%clk 0:01:23.3]} 25... Rd8 {[%clk 0:01:38.6]} 26. Rd5 {[%clk
0:01:20.6]} 26... Re8 {[%clk 0:01:36]} 27. e4 {[%clk 0:01:19.8]} 27... g5 {[%clk
0:01:34.3]} 28. Nd6 {[%clk 0:01:15.9]} 28... Re7 {[%clk 0:01:28.6]} 29. Nf5
{[%clk 0:01:15]} 29... Rc7 {[%clk 0:01:24.4]} 30. Nxh6+ {[%clk 0:01:12.9]} 30...
Kh7 {[%clk 0:01:22.5]} 31. fxg5 {[%clk 0:01:11.2]} 31... fxg5 {[%clk 0:01:20.9]}
32. Ng4 {[%clk 0:01:11.1]} 32... Kg6 {[%clk 0:01:19.1]} 33. b4 {[%clk
0:01:07.3]} 1-0

[Event "*** Titled Tuesday Blitz"]
[Site "Chess.com"]
[Date "2021.04.06"]
[Round "11"]
[White "Magila31"]
[Black "Snowflake"]
[Result "0-1"]
[WhiteElo "2337"]
[BlackElo "2489"]
[TimeControl "180+1"]
[EndTime "12:05:17 PDT"]
[Termination "Snowflake won by resignation"]

1. d4 {[%clk 0:02:59.1]} 1... a6 {[%clk 0:02:59.4]} 2. e4 {[%clk 0:02:55.2]}
2... b6 {[%clk 0:02:59.5]} 3. Bc4 {[%clk 0:02:52.8]} 3... c6 {[%clk 0:02:59.4]}
4. Nf3 {[%clk 0:02:47.5]} 4... d6 {[%clk 0:02:58.7]} 5. O-O {[%clk 0:02:40.7]}
5... e6 {[%clk 0:02:57.3]} 6. a4 {[%clk 0:02:31.7]} 6... f6 {[%clk 0:02:56.2]}
7. Nh4 {[%clk 0:02:21.3]} 7... g6 {[%clk 0:02:54.4]} 8. f4 {[%clk 0:02:17.6]}
8... Ra7 {[%clk 0:02:52.4]} 9. f5 {[%clk 0:02:15.1]} 9... exf5 {[%clk
0:02:49.9]} 10. exf5 {[%clk 0:02:07.3]} 10... d5 {[%clk 0:02:49.4]} 11. Bd3
{[%clk 0:02:05.6]} 11... g5 {[%clk 0:02:48.8]} 12. Qh5+ {[%clk 0:02:04.1]} 12...
Kd7 {[%clk 0:02:45.7]} 13. Ng6 {[%clk 0:01:55.9]} 13... hxg6 {[%clk 0:02:18.2]}
14. Qxh8 {[%clk 0:01:55.1]} 14... Nh6 {[%clk 0:02:09.9]} 15. fxg6 {[%clk
0:01:50.8]} 15... Kd6 {[%clk 0:01:59.3]} 16. c4 {[%clk 0:01:27.6]} 16... Be6
{[%clk 0:01:55.4]} 17. c5+ {[%clk 0:01:24.1]} 17... bxc5 {[%clk 0:01:52.8]} 18.
dxc5+ {[%clk 0:01:22]} 18... Ke5 {[%clk 0:01:52.5]} 19. Be3 {[%clk 0:01:13.5]}
19... d4 {[%clk 0:01:50.9]} 20. Bf2 {[%clk 0:01:11.7]} 20... Nd7 {[%clk
0:01:46.9]} 21. Re1+ {[%clk 0:01:05.7]} 21... Kd5 {[%clk 0:01:47]} 22. Nd2
{[%clk 0:01:05]} 22... Nxc5 {[%clk 0:01:45.4]} 23. Bc4+ {[%clk 0:01:03.8]} 23...
Kd6 {[%clk 0:01:45.4]} 24. Bxd4 {[%clk 0:00:59.5]} 24... Ng4 {[%clk 0:01:27.9]}
25. Bxc5+ {[%clk 0:00:50.9]} 25... Kxc5 {[%clk 0:01:28.8]} 26. Bxe6 {[%clk
0:00:50.5]} 26... Qd4+ {[%clk 0:01:27.3]} 27. Kh1 {[%clk 0:00:42.6]} 27... Nf2+
{[%clk 0:01:27.4]} 28. Kg1 {[%clk 0:00:42.9]} 28... Nh3+ {[%clk 0:01:27.6]} 0-1

[Event "*** Titled Tuesday Blitz"]
[Site "Chess.com"]
[Date "2021.04.06"]
[Round "11"]
[White "biostatistician"]
[Black "Ind1anStar"]
[Result "1-0"]
[WhiteElo "2624"]
[BlackElo "2520"]
[TimeControl "180+1"]
[EndTime "12:05:24 PDT"]
[Termination "biostatistician won by resignation"]

1. d4 {[%clk 0:02:58.4]} 1... d5 {[%clk 0:02:59.7]} 2. Nf3 {[%clk 0:02:59.3]}
2... Nf6 {[%clk 0:02:59.6]} 3. c4 {[%clk 0:03:00.2]} 3... e6 {[%clk 0:02:59.6]}
4. Bg5 {[%clk 0:03:00.8]} 4... Be7 {[%clk 0:02:59.4]} 5. Nc3 {[%clk 0:03:01.3]}
5... O-O {[%clk 0:02:59.4]} 6. e3 {[%clk 0:03:01.2]} 6... Nbd7 {[%clk
0:02:59.1]} 7. Rc1 {[%clk 0:03:00.8]} 7... a6 {[%clk 0:02:56.2]} 8. c5 {[%clk
0:03:00]} 8... c6 {[%clk 0:02:44.4]} 9. b4 {[%clk 0:02:59.9]} 9... h6 {[%clk
0:02:40.6]} 10. Bf4 {[%clk 0:02:59.7]} 10... Nh5 {[%clk 0:02:36.9]} 11. Bd3
{[%clk 0:03:00]} 11... Nxf4 {[%clk 0:02:34.5]} 12. exf4 {[%clk 0:03:00.9]} 12...
a5 {[%clk 0:02:20.3]} 13. a3 {[%clk 0:02:56.8]} 13... axb4 {[%clk 0:02:20.1]}
14. axb4 {[%clk 0:02:57.7]} 14... b5 {[%clk 0:02:15.9]} 15. O-O {[%clk
0:02:55.9]} 15... Bb7 {[%clk 0:02:10.8]} 16. Ra1 {[%clk 0:02:55.3]} 16... Qc7
{[%clk 0:02:09.1]} 17. Qd2 {[%clk 0:02:52.5]} 17... Rxa1 {[%clk 0:01:47.1]} 18.
Rxa1 {[%clk 0:02:53.4]} 18... Ra8 {[%clk 0:01:47.7]} 19. Rxa8+ {[%clk
0:02:53.6]} 19... Bxa8 {[%clk 0:01:48.6]} 20. Qa2 {[%clk 0:02:52.4]} 20... Bb7
{[%clk 0:01:42]} 21. g3 {[%clk 0:02:52.2]} 21... Qb8 {[%clk 0:01:37.6]} 22. Ne5
{[%clk 0:02:48.7]} 22... Nxe5 {[%clk 0:01:32.6]} 23. fxe5 {[%clk 0:02:49.6]}
23... Qa8 {[%clk 0:01:32.5]} 24. Qxa8+ {[%clk 0:02:48.9]} 24... Bxa8 {[%clk
0:01:33.4]} 25. f4 {[%clk 0:02:49.4]} 25... f6 {[%clk 0:01:30.2]} 26. Bg6 {[%clk
0:02:46.5]} 26... Kf8 {[%clk 0:01:19.8]} 27. Kf2 {[%clk 0:02:43.5]} 27... fxe5
{[%clk 0:01:19.7]} 28. dxe5 {[%clk 0:02:41.4]} 28... Bb7 {[%clk 0:01:18.7]} 29.
Ne2 {[%clk 0:02:41.8]} 29... Bc8 {[%clk 0:01:15.9]} 30. Nd4 {[%clk 0:02:41.9]}
30... Bd7 {[%clk 0:01:16.3]} 31. Kf3 {[%clk 0:02:39.9]} 31... Bd8 {[%clk
0:01:14.9]} 32. h4 {[%clk 0:02:39]} 32... Bc7 {[%clk 0:01:13.7]} 33. h5 {[%clk
0:02:38.8]} 33... Ke7 {[%clk 0:01:11.4]} 34. g4 {[%clk 0:02:35.8]} 34... Kf8
{[%clk 0:01:09.9]} 35. Ke3 {[%clk 0:02:36]} 35... Ke7 {[%clk 0:01:08.7]} 36. Nf3
{[%clk 0:02:34.5]} 36... Be8 {[%clk 0:01:00.8]} 37. f5 {[%clk 0:02:33.3]} 37...
Bxg6 {[%clk 0:00:31.2]} 38. hxg6 {[%clk 0:02:34.2]} 38... Bb8 {[%clk 0:00:14.6]}
39. Kf4 {[%clk 0:02:34.2]} 39... Bc7 {[%clk 0:00:14.1]} 40. Nd4 {[%clk
0:02:34.5]} 40... exf5 {[%clk 0:00:13.8]} 41. gxf5 {[%clk 0:02:30.4]} 1-0

[Event "*** Titled Tuesday Blitz"]
[Site "Chess.com"]
[Date "2021.04.06"]
[Round "11"]
[White "2008king"]
[Black "dhaessel"]
[Result "1-0"]
[WhiteElo "2186"]
[BlackElo "2070"]
[TimeControl "180+1"]
[EndTime "12:05:32 PDT"]
[Termination "2008king won on time"]

1. e4 {[%clk 0:03:00.9]} 1... e5 {[%clk 0:02:59.9]} 2. Nf3 {[%clk 0:03:01.1]}
2... Nc6 {[%clk 0:02:58.2]} 3. d4 {[%clk 0:03:01.2]} 3... exd4 {[%clk
0:02:56.7]} 4. Nxd4 {[%clk 0:03:02.1]} 4... Bc5 {[%clk 0:02:48.3]} 5. Nb3 {[%clk
0:03:01.3]} 5... Bb6 {[%clk 0:02:46.4]} 6. Nc3 {[%clk 0:03:01.2]} 6... Nf6
{[%clk 0:02:41.8]} 7. Qe2 {[%clk 0:02:59.9]} 7... d6 {[%clk 0:02:39.1]} 8. Bg5
{[%clk 0:02:58.3]} 8... h6 {[%clk 0:02:33.7]} 9. Bh4 {[%clk 0:02:58]} 9... O-O
{[%clk 0:02:33.1]} 10. O-O-O {[%clk 0:02:54.8]} 10... Be6 {[%clk 0:02:22.4]} 11.
f3 {[%clk 0:02:53.7]} 11... a5 {[%clk 0:02:20.2]} 12. a4 {[%clk 0:02:53.1]}
12... Nb4 {[%clk 0:02:16.1]} 13. Nd5 {[%clk 0:02:45.6]} 13... Bxd5 {[%clk
0:01:49.9]} 14. exd5 {[%clk 0:02:46.5]} 14... g5 {[%clk 0:01:43.5]} 15. Bf2
{[%clk 0:02:33.8]} 15... Bxf2 {[%clk 0:01:41.4]} 16. Qxf2 {[%clk 0:02:34.7]}
16... Nfxd5 {[%clk 0:01:35]} 17. c3 {[%clk 0:02:32]} 17... c6 {[%clk 0:01:07.2]}
18. cxb4 {[%clk 0:02:29.2]} 18... axb4 {[%clk 0:01:07.7]} 19. a5 {[%clk
0:02:24.7]} 19... Rxa5 {[%clk 0:01:01.6]} 20. Nxa5 {[%clk 0:02:23.2]} 20... Qxa5
{[%clk 0:01:02.5]} 21. Bc4 {[%clk 0:02:16.8]} 21... Nf4 {[%clk 0:00:44.5]} 22.
g3 {[%clk 0:02:13]} 22... d5 {[%clk 0:00:40]} 23. Bb3 {[%clk 0:02:07.5]} 23...
Ne6 {[%clk 0:00:38.1]} 24. Kc2 {[%clk 0:01:58.3]} 24... Qc7 {[%clk 0:00:31.1]}
25. h4 {[%clk 0:01:55.2]} 25... Qe5 {[%clk 0:00:26.1]} 26. hxg5 {[%clk
0:01:52.7]} 26... hxg5 {[%clk 0:00:25.2]} 27. Qh2 {[%clk 0:01:42.6]} 27... Rb8
{[%clk 0:00:20.6]} 28. Qh7+ {[%clk 0:01:40.4]} 28... Kf8 {[%clk 0:00:20.1]} 29.
Qh8+ {[%clk 0:01:40.9]} 1-0

[Event "*** Titled Tuesday Blitz"]
[Site "Chess.com"]
[Date "2021.04.06"]
[Round "11"]
[White "attack2mateU"]
[Black "scandalgod"]
[Result "1/2-1/2"]
[WhiteElo "2691"]
[BlackElo "2583"]
[TimeControl "180+1"]
[EndTime "12:05:38 PDT"]
[Termination "Game drawn by repetition"]

1. e4 {[%clk 0:03:00.9]} 1... e5 {[%clk 0:02:58.9]} 2. Nf3 {[%clk 0:03:00.6]}
2... Nc6 {[%clk 0:02:58.2]} 3. Bc4 {[%clk 0:03:00.6]} 3... Nf6 {[%clk
0:02:57.4]} 4. Ng5 {[%clk 0:03:00]} 4... d5 {[%clk 0:02:57.1]} 5. exd5 {[%clk
0:03:00.9]} 5... Na5 {[%clk 0:02:57.6]} 6. Bb5+ {[%clk 0:03:00.8]} 6... c6
{[%clk 0:02:57.6]} 7. dxc6 {[%clk 0:03:01.5]} 7... bxc6 {[%clk 0:02:58.2]} 8.
Bd3 {[%clk 0:03:02.1]} 8... Nd5 {[%clk 0:02:35.2]} 9. Nf3 {[%clk 0:03:00.8]}
9... Bd6 {[%clk 0:02:32]} 10. O-O {[%clk 0:02:58.7]} 10... Nf4 {[%clk
0:02:32.1]} 11. Nc3 {[%clk 0:02:46.7]} 11... Nxd3 {[%clk 0:02:27.4]} 12. cxd3
{[%clk 0:02:47.6]} 12... O-O {[%clk 0:02:24.7]} 13. Ne4 {[%clk 0:02:38]} 13...
Bc7 {[%clk 0:02:16.2]} 14. Qc2 {[%clk 0:02:21.5]} 14... Bg4 {[%clk 0:02:04.7]}
15. b4 {[%clk 0:02:20.6]} 15... Bxf3 {[%clk 0:01:59]} 16. gxf3 {[%clk
0:02:21.5]} 16... f5 {[%clk 0:01:47.9]} 17. bxa5 {[%clk 0:01:31.2]} 17... fxe4
{[%clk 0:01:41.4]} 18. dxe4 {[%clk 0:01:03.5]} 18... Qg5+ {[%clk 0:01:30.7]} 19.
Kh1 {[%clk 0:01:03.2]} 19... Qh5 {[%clk 0:01:29.2]} 20. Rg1 {[%clk 0:00:37.5]}
20... Qxf3+ {[%clk 0:01:28.7]} 21. Rg2 {[%clk 0:00:37.7]} 21... Rad8 {[%clk
0:01:21.8]} 22. Qxc6 {[%clk 0:00:22.9]} 22... Qd1+ {[%clk 0:01:16.6]} 23. Rg1
{[%clk 0:00:22.4]} 23... Qf3+ {[%clk 0:01:15.6]} 24. Rg2 {[%clk 0:00:23]} 24...
Qd1+ {[%clk 0:01:11.5]} 25. Rg1 {[%clk 0:00:22.9]} 25... Qf3+ {[%clk 0:01:11.5]}
26. Rg2 {[%clk 0:00:23.6]} 1/2-1/2

[Event "*** Titled Tuesday Blitz"]
[Site "Chess.com"]
[Date "2021.04.06"]
[Round "11"]
[White "Alexander_Moskalenko"]
[Black "Sychev_Klementy"]
[Result "0-1"]
[WhiteElo "2766"]
[BlackElo "2892"]
[TimeControl "180+1"]
[EndTime "12:05:46 PDT"]
[Termination "Sychev_Klementy won by resignation"]

1. d4 {[%clk 0:03:00.9]} 1... Nf6 {[%clk 0:02:53.4]} 2. Nf3 {[%clk 0:02:58.1]}
2... d5 {[%clk 0:02:49.3]} 3. c4 {[%clk 0:02:57.2]} 3... dxc4 {[%clk 0:02:23.6]}
4. g3 {[%clk 0:02:15.9]} 4... b5 {[%clk 0:01:55.2]} 5. Bg2 {[%clk 0:02:14.6]}
5... Bb7 {[%clk 0:01:54.3]} 6. O-O {[%clk 0:02:15.5]} 6... e6 {[%clk 0:01:54.2]}
7. a4 {[%clk 0:02:12.6]} 7... a6 {[%clk 0:01:53.2]} 8. axb5 {[%clk 0:02:00.4]}
8... axb5 {[%clk 0:01:54.1]} 9. Rxa8 {[%clk 0:02:00.7]} 9... Bxa8 {[%clk
0:01:53.8]} 10. b3 {[%clk 0:02:01.6]} 10... cxb3 {[%clk 0:01:41.7]} 11. Qxb3
{[%clk 0:02:02.5]} 11... b4 {[%clk 0:01:15.8]} 12. Bd2 {[%clk 0:02:02.5]} 12...
Bd5 {[%clk 0:01:12.3]} 13. Qa4+ {[%clk 0:02:02.5]} 13... Qd7 {[%clk 0:01:02.9]}
14. Qa5 {[%clk 0:01:50.3]} 14... Nc6 {[%clk 0:01:01.7]} 15. Qa8+ {[%clk
0:01:50.9]} 15... Nd8 {[%clk 0:01:01.9]} 16. Qb8 {[%clk 0:01:46.6]} 16... Bd6
{[%clk 0:00:47.7]} 17. Ne5 {[%clk 0:01:22.4]} 17... Qa4 {[%clk 0:00:32.6]} 18.
Bxd5 {[%clk 0:01:15.2]} 18... exd5 {[%clk 0:00:28.7]} 19. Nd3 {[%clk 0:01:15.4]}
19... O-O {[%clk 0:00:23.1]} 20. Bxb4 {[%clk 0:01:03.5]} 20... Nc6 {[%clk
0:00:20.1]} 21. Nc3 {[%clk 0:01:01.6]} 21... Rxb8 {[%clk 0:00:18.1]} 0-1

[Event "*** Titled Tuesday Blitz"]
[Site "Chess.com"]
[Date "2021.04.06"]
[Round "11"]
[White "GMHess"]
[Black "suyu28"]
[Result "1-0"]
[WhiteElo "2757"]
[BlackElo "2624"]
[TimeControl "180+1"]
[EndTime "12:05:47 PDT"]
[Termination "GMHess won by resignation"]

1. b3 {[%clk 0:03:00.9]} 1... d5 {[%clk 0:02:23]} 2. Bb2 {[%clk 0:03:00.5]} 2...
c6 {[%clk 0:02:23.4]} 3. h3 {[%clk 0:03:00.6]} 3... Nf6 {[%clk 0:02:23.3]} 4. d3
{[%clk 0:03:00.6]} 4... g6 {[%clk 0:02:23.7]} 5. Nd2 {[%clk 0:03:01.1]} 5... Bg7
{[%clk 0:02:24.2]} 6. g4 {[%clk 0:03:01.5]} 6... O-O {[%clk 0:02:24.6]} 7. Bg2
{[%clk 0:03:02.1]} 7... c5 {[%clk 0:02:25]} 8. e3 {[%clk 0:03:01.8]} 8... Nc6
{[%clk 0:02:25.4]} 9. Ne2 {[%clk 0:03:01.6]} 9... e5 {[%clk 0:02:25.8]} 10. Ng3
{[%clk 0:03:01.9]} 10... d4 {[%clk 0:02:08.9]} 11. Bxc6 {[%clk 0:02:59.4]} 11...
bxc6 {[%clk 0:01:56.2]} 12. Qe2 {[%clk 0:02:32.9]} 12... Nd5 {[%clk 0:01:55.1]}
13. Nc4 {[%clk 0:02:22.1]} 13... Ba6 {[%clk 0:01:46]} 14. O-O {[%clk 0:02:16.9]}
14... Qe7 {[%clk 0:01:26.8]} 15. Kh2 {[%clk 0:02:12.2]} 15... Rae8 {[%clk
0:01:20.9]} 16. Qf3 {[%clk 0:01:54]} 16... Bc8 {[%clk 0:01:10.4]} 17. Ba3 {[%clk
0:01:46.3]} 17... f5 {[%clk 0:00:56.8]} 18. gxf5 {[%clk 0:01:45.2]} 18... gxf5
{[%clk 0:00:57.7]} 19. Nh5 {[%clk 0:01:38.9]} 19... Bh6 {[%clk 0:00:55.4]} 20.
exd4 {[%clk 0:01:22.7]} 20... exd4 {[%clk 0:00:46.1]} 21. Rae1 {[%clk
0:01:16.7]} 21... Qc7+ {[%clk 0:00:43.3]} 22. Qg3+ {[%clk 0:01:13.8]} 22...
Qxg3+ {[%clk 0:00:41.5]} 23. fxg3 {[%clk 0:01:05.1]} 23... Nb4 {[%clk
0:00:27.4]} 24. Rxe8 {[%clk 0:01:02.8]} 24... Rxe8 {[%clk 0:00:26.8]} 25. Nf6+
{[%clk 0:01:03.3]} 25... Kf7 {[%clk 0:00:27.1]} 26. Nxe8 {[%clk 0:01:03.1]}
26... Kxe8 {[%clk 0:00:28]} 27. Bxb4 {[%clk 0:01:03.2]} 27... cxb4 {[%clk
0:00:27.9]} 28. Nd6+ {[%clk 0:01:03.9]} 1-0

[Event "*** Titled Tuesday Blitz"]
[Site "Chess.com"]
[Date "2021.04.06"]
[Round "11"]
[White "TheMagicMaik"]
[Black "Omk124"]
[Result "0-1"]
[WhiteElo "2420"]
[BlackElo "2576"]
[TimeControl "180+1"]
[EndTime "12:05:49 PDT"]
[Termination "Omk124 won by resignation"]

1. e4 {[%clk 0:03:00.9]} 1... c5 {[%clk 0:02:59.5]} 2. c3 {[%clk 0:02:59.7]}
2... d5 {[%clk 0:02:59.4]} 3. exd5 {[%clk 0:02:59.7]} 3... Qxd5 {[%clk
0:03:00.3]} 4. d4 {[%clk 0:03:00.4]} 4... Nf6 {[%clk 0:03:00.5]} 5. Nf3 {[%clk
0:03:00.6]} 5... e6 {[%clk 0:03:01]} 6. Be2 {[%clk 0:02:58.8]} 6... Nc6 {[%clk
0:02:57.7]} 7. O-O {[%clk 0:02:58.9]} 7... cxd4 {[%clk 0:02:56.7]} 8. cxd4
{[%clk 0:02:59]} 8... Bb4 {[%clk 0:02:57.3]} 9. Nc3 {[%clk 0:02:57.5]} 9... Bxc3
{[%clk 0:02:57.2]} 10. bxc3 {[%clk 0:02:57.8]} 10... O-O {[%clk 0:02:57.4]} 11.
a4 {[%clk 0:02:56.4]} 11... b6 {[%clk 0:02:57.5]} 12. Nd2 {[%clk 0:02:54.5]}
12... Bb7 {[%clk 0:02:55.9]} 13. Bf3 {[%clk 0:02:54.7]} 13... Qd7 {[%clk
0:02:55.8]} 14. Nc4 {[%clk 0:02:36.8]} 14... Rfd8 {[%clk 0:02:50.9]} 15. Bg5
{[%clk 0:02:34.4]} 15... Nd5 {[%clk 0:02:46.3]} 16. Qd3 {[%clk 0:02:18.2]} 16...
Ba6 {[%clk 0:02:43.1]} 17. Be2 {[%clk 0:02:01.7]} 17... Na5 {[%clk 0:02:16.6]}
18. Bxd8 {[%clk 0:01:17.4]} 18... Bxc4 {[%clk 0:02:14.6]} 19. Qc2 {[%clk
0:01:04.4]} 19... Rxd8 {[%clk 0:02:05.7]} 20. Rfe1 {[%clk 0:00:53.1]} 20... Bxe2
{[%clk 0:02:04.3]} 21. Rxe2 {[%clk 0:00:51.9]} 21... Rc8 {[%clk 0:02:04.7]} 22.
Re4 {[%clk 0:00:30]} 22... Rxc3 {[%clk 0:02:01.6]} 23. Qe2 {[%clk 0:00:22.3]}
23... Nb3 {[%clk 0:01:55.4]} 24. Rd1 {[%clk 0:00:20.6]} 24... Qxa4 {[%clk
0:01:53.6]} 25. Rh4 {[%clk 0:00:19.7]} 25... g6 {[%clk 0:01:49.9]} 26. Qe5
{[%clk 0:00:18.8]} 26... Nc5 {[%clk 0:01:42.4]} 27. Qb8+ {[%clk 0:00:15.6]}
27... Kg7 {[%clk 0:01:39.9]} 28. Rf1 {[%clk 0:00:11]} 28... Nd7 {[%clk
0:01:39.6]} 29. Qd6 {[%clk 0:00:08.5]} 29... N5f6 {[%clk 0:01:37.4]} 30. Qe5
{[%clk 0:00:07.6]} 30... Nxe5 {[%clk 0:01:36.7]} 31. dxe5 {[%clk 0:00:07.2]}
31... Qxh4 {[%clk 0:01:37]} 32. exf6+ {[%clk 0:00:06.4]} 32... Kxf6 {[%clk
0:01:37.9]} 0-1

[Event "*** Titled Tuesday Blitz"]
[Site "Chess.com"]
[Date "2021.04.06"]
[Round "11"]
[White "joejan"]
[Black "MusicCityMaster"]
[Result "0-1"]
[WhiteElo "2273"]
[BlackElo "2396"]
[TimeControl "180+1"]
[EndTime "12:05:49 PDT"]
[Termination "MusicCityMaster won by resignation"]

1. e4 {[%clk 0:03:00.9]} 1... c5 {[%clk 0:02:59.1]} 2. Nc3 {[%clk 0:03:01]} 2...
d6 {[%clk 0:02:58.7]} 3. f4 {[%clk 0:03:01.9]} 3... g6 {[%clk 0:02:56.7]} 4. Nf3
{[%clk 0:03:02.8]} 4... Bg7 {[%clk 0:02:57.1]} 5. Bc4 {[%clk 0:03:03]} 5... Nc6
{[%clk 0:02:57.5]} 6. O-O {[%clk 0:03:02.6]} 6... Nd4 {[%clk 0:02:58.1]} 7. d3
{[%clk 0:03:00.7]} 7... e6 {[%clk 0:02:58.3]} 8. Nxd4 {[%clk 0:02:56.6]} 8...
cxd4 {[%clk 0:02:57.6]} 9. Ne2 {[%clk 0:02:56.7]} 9... Ne7 {[%clk 0:02:53.8]}
10. Bb3 {[%clk 0:02:56]} 10... a5 {[%clk 0:02:47.6]} 11. Ng3 {[%clk 0:02:56.5]}
11... a4 {[%clk 0:02:47.2]} 12. Bc4 {[%clk 0:02:56.5]} 12... O-O {[%clk
0:02:43.3]} 13. f5 {[%clk 0:02:52.8]} 13... exf5 {[%clk 0:02:36]} 14. exf5
{[%clk 0:02:52.5]} 14... Nxf5 {[%clk 0:02:35.8]} 15. Nxf5 {[%clk 0:02:52.3]}
15... Bxf5 {[%clk 0:02:35.8]} 16. Rxf5 {[%clk 0:02:52.4]} 16... gxf5 {[%clk
0:02:35.1]} 17. Bd5 {[%clk 0:02:52.8]} 17... Qh4 {[%clk 0:02:29]} 18. Bd2 {[%clk
0:02:46.3]} 18... Rae8 {[%clk 0:02:24.2]} 19. Qf3 {[%clk 0:02:37.5]} 19... Qg4
{[%clk 0:02:05.5]} 20. Bxb7 {[%clk 0:02:25.8]} 20... Re2 {[%clk 0:02:00.6]} 21.
Rd1 {[%clk 0:02:18]} 21... Rxg2+ {[%clk 0:01:53.3]} 22. Kh1 {[%clk 0:02:06.7]}
22... Qxf3 {[%clk 0:01:07.8]} 23. Bxf3 {[%clk 0:02:04.6]} 23... Rf2 {[%clk
0:01:08.5]} 24. Bc6 {[%clk 0:02:03.9]} 24... Be5 {[%clk 0:01:08.1]} 25. Bxa4
{[%clk 0:02:02.1]} 25... Rxh2+ {[%clk 0:01:07]} 26. Kg1 {[%clk 0:02:01.9]} 26...
Kh8 {[%clk 0:01:06.8]} 27. Be1 {[%clk 0:01:48.6]} 27... Rg8+ {[%clk 0:01:06.5]}
28. Kf1 {[%clk 0:01:48.4]} 28... Rgg2 {[%clk 0:00:53.8]} 29. Bc6 {[%clk
0:01:43.5]} 29... Rxc2 {[%clk 0:00:50.9]} 30. Bd5 {[%clk 0:01:41.7]} 30... Bf4
{[%clk 0:00:37.9]} 31. a4 {[%clk 0:01:37.7]} 31... Be3 {[%clk 0:00:37.7]} 32. a5
{[%clk 0:01:34.7]} 32... Rc5 {[%clk 0:00:37.2]} 33. a6 {[%clk 0:01:30.6]} 33...
Rxd5 {[%clk 0:00:31]} 34. a7 {[%clk 0:01:30]} 34... Rh1+ {[%clk 0:00:31.2]} 35.
Kg2 {[%clk 0:01:25.8]} 35... Rg1+ {[%clk 0:00:31]} 36. Kf3 {[%clk 0:01:22.8]}
36... Rg8 {[%clk 0:00:31.5]} 0-1